[Event "MČR družstev mladších žáků 2024"]
[Site "Harrachov, Czech Republic"]
[Date "2024.06.15"]
[Round "7.16"]
[White "Koutecka Magdalena"]
[Black "Hamernikova Iris"]
[Result "0-1"]
[TimeControl "25+10"]
[WhiteFideId "23752599"]
[BlackFideId "23745738"]
[WhiteElo "1085"]
[BlackElo "1216"]

1. e4 {[%clk 00:25:18]} {[%emt 00:00:02]} e5 {[%clk 00:25:19]} {[%emt
00:00:02]} 2. Nf3 {[%clk 00:25:27]} {[%emt 00:00:02]} Nc6 {[%clk 00:25:28]} 3.
d4 {[%clk 00:25:36]} {[%emt 00:00:01]} exd4 {[%clk 00:25:36]} {[%emt 00:00:02]}
4. Bc4 {[%clk 00:25:44]} {[%emt 00:00:01]} Nf6 {[%clk 00:25:44]} {[%emt
00:00:02]} 5. e5 {[%clk 00:25:53]} {[%emt 00:00:02]} d5 {[%clk 00:25:53]} 6.
Bb5 {[%clk 00:26:01]} {[%emt 00:00:01]} Ne4 {[%clk 00:26:02]} {[%emt 00:00:01]}
7. Nxd4 {[%clk 00:26:08]} {[%emt 00:00:02]} Bd7 {[%clk 00:26:10]} {[%emt
00:00:02]} 8. Bxc6 {[%clk 00:26:07]} {[%emt 00:00:12]} bxc6 {[%clk 00:26:19]}
{[%emt 00:00:01]} 9. O-O {[%clk 00:26:08]} {[%emt 00:00:09]} Bc5 {[%clk
00:26:28]} {[%emt 00:00:02]} 10. Be3 {[%clk 00:26:15]} {[%emt 00:00:02]} Bb6
{[%clk 00:26:29]} {[%emt 00:00:09]} 11. f3 {[%clk 00:26:21]} {[%emt 00:00:05]}
Ng5 {[%clk 00:26:37]} {[%emt 00:00:02]} 12. f4 {[%clk 00:26:28]} {[%emt
00:00:03]} Ne4 {[%clk 00:26:45]} {[%emt 00:00:01]} 13. Nd2 {[%clk 00:26:33]}
{[%emt 00:00:05]} Nxd2 {[%clk 00:26:52]} {[%emt 00:00:03]} 14. Qxd2 {[%clk
00:26:39]} {[%emt 00:00:03]} O-O {[%clk 00:26:59]} {[%emt 00:00:04]} 15. Nb3
{[%clk 00:26:44]} {[%emt 00:00:06]} Qe7 {[%clk 00:26:58]} {[%emt 00:00:10]} 16.
Qc3 {[%clk 00:26:49]} {[%emt 00:00:04]} Bf5 {[%clk 00:26:22]} {[%emt 00:00:47]}
17. Bxb6 {[%clk 00:25:41]} {[%emt 00:01:18]} cxb6 {[%clk 00:26:18]} {[%emt
00:00:14]} 18. Qxc6 {[%clk 00:25:18]} {[%emt 00:00:32]} Be4 {[%clk 00:26:24]}
{[%emt 00:00:04]} 19. Qc3 {[%clk 00:24:17]} {[%emt 00:01:11]} Rac8 {[%clk
00:26:17]} {[%emt 00:00:17]} 20. Qd4 {[%clk 00:22:13]} {[%emt 00:02:11]} Rc4
{[%clk 00:26:20]} {[%emt 00:00:09]} 21. Qe3 {[%clk 00:20:57]} {[%emt 00:01:21]}
Rxc2 {[%clk 00:26:01]} {[%emt 00:00:35]} 22. Qd4 {[%clk 00:19:12]} {[%emt
00:01:54]} Rxg2+ {[%clk 00:25:47]} {[%emt 00:00:26]} 0-1



[ePGN "0.1;DGT LiveChess/2.2.6"]

[Event "MČR družstev mladších žáků 2024"]
[Site "Harrachov, Czech Republic"]
[Date "2024.06.15"]
[Round "7.17"]
[White "Prikryl Daniel"]
[Black "Strazhnyk Yevhen"]
[Result "1-0"]
[TimeControl "25+10"]
[WhiteFideId "23745770"]
[BlackFideId "23771305"]
[WhiteElo "1199"]
[BlackElo "1150"]

1. e4 {[%clk 00:25:18]} {[%emt 00:00:02]} e5 {[%clk 00:25:18]} {[%emt
00:00:03]} 2. Nf3 {[%clk 00:25:24]} {[%emt 00:00:03]} Nc6 {[%clk 00:25:21]}
{[%emt 00:00:08]} 3. Nc3 {[%clk 00:25:28]} {[%emt 00:00:06]} Nf6 {[%clk
00:25:19]} {[%emt 00:00:11]} 4. Bb5 {[%clk 00:25:30]} {[%emt 00:00:06]} d6
{[%clk 00:25:26]} {[%emt 00:00:06]} 5. d3 {[%clk 00:25:27]} {[%emt 00:00:14]}
Bd7 {[%clk 00:25:24]} {[%emt 00:00:11]} 6. h3 {[%clk 00:25:22]} {[%emt
00:00:15]} g6 {[%clk 00:25:14]} {[%emt 00:00:20]} 7. Be3 {[%clk 00:25:06]}
{[%emt 00:00:26]} Bg7 {[%clk 00:25:12]} {[%emt 00:00:12]} 8. O-O {[%clk
00:24:55]} {[%emt 00:00:21]} O-O {[%clk 00:24:48]} {[%emt 00:00:35]} 9. Qd2
{[%clk 00:24:43]} {[%emt 00:00:14]} Qe7 {[%clk 00:24:35]} {[%emt 00:00:30]} 10.
Bh6 {[%clk 00:23:55]} {[%emt 00:00:51]} Nh5 {[%clk 00:24:27]} {[%emt 00:00:16]}
11. Bxg7 {[%clk 00:23:56]} {[%emt 00:00:19]} Kxg7 {[%clk 00:24:32]} {[%emt
00:00:05]} 12. Bc4 {[%clk 00:23:51]} {[%emt 00:00:14]} Nf4 {[%clk 00:24:25]}
{[%emt 00:00:15]} 13. Ne2 {[%clk 00:23:21]} {[%emt 00:00:40]} Qf6 {[%clk
00:23:45]} {[%emt 00:00:50]} 14. Nxf4 {[%clk 00:23:08]} {[%emt 00:00:25]} exf4
{[%clk 00:23:34]} {[%emt 00:00:21]} 15. Rab1 {[%clk 00:22:47]} {[%emt
00:00:23]} Ne5 {[%clk 00:23:28]} {[%emt 00:00:22]} 16. Nxe5 {[%clk 00:22:25]}
{[%emt 00:00:34]} dxe5 {[%clk 00:23:35]} {[%emt 00:00:04]} 17. Qe2 {[%clk
00:22:19]} {[%emt 00:00:14]} Qg5 {[%clk 00:22:46]} {[%emt 00:00:47]} 18. Qf3
{[%clk 00:22:12]} {[%emt 00:00:29]} Qh4 {[%clk 00:21:43]} {[%emt 00:01:10]} 19.
Rfe1 {[%clk 00:21:36]} {[%emt 00:00:46]} g5 {[%clk 00:21:42]} {[%emt 00:00:14]}
20. g4 {[%clk 00:19:05]} {[%emt 00:02:36]} fxg3 {[%clk 00:21:31]} {[%emt
00:00:27]} 21. Qxg3 {[%clk 00:18:36]} {[%emt 00:00:38]} Qxg3+ {[%clk 00:20:55]}
{[%emt 00:00:47]} 22. fxg3 {[%clk 00:18:41]} {[%emt 00:00:03]} Bxh3 {[%clk
00:21:00]} {[%emt 00:00:06]} 23. Kh2 {[%clk 00:18:27]} {[%emt 00:00:19]} g4
{[%clk 00:20:19]} {[%emt 00:00:57]} 24. Re2 {[%clk 00:18:02]} {[%emt 00:00:32]}
f6 {[%clk 00:19:07]} {[%emt 00:01:23]} 25. Rf2 {[%clk 00:17:51]} {[%emt
00:00:21]} c6 {[%clk 00:18:37]} {[%emt 00:00:41]} 26. Rf5 {[%clk 00:17:27]}
{[%emt 00:00:32]} a5 {[%clk 00:18:03]} {[%emt 00:00:46]} 27. a4 {[%clk
00:17:23]} {[%emt 00:00:15]} Rab8 {[%clk 00:16:26]} {[%emt 00:01:45]} 28. Ra1
{[%clk 00:16:50]} {[%emt 00:00:42]} b6 {[%clk 00:15:44]} {[%emt 00:00:53]} 29.
Ra3 {[%clk 00:16:42]} {[%emt 00:00:19]} Rbd8 {[%clk 00:14:37]} {[%emt
00:01:15]} 30. Rb3 {[%clk 00:16:37]} {[%emt 00:00:18]} Rb8 {[%clk 00:14:34]}
{[%emt 00:00:13]} 31. Ba6 {[%clk 00:15:31]} {[%emt 00:01:10]} Rfd8 {[%clk
00:14:19]} {[%emt 00:00:31]} 32. Bc4 {[%clk 00:15:18]} {[%emt 00:00:24]} Rd4
{[%clk 00:14:08]} {[%emt 00:00:16]} 33. c3 {[%clk 00:14:52]} {[%emt 00:00:36]}
Rd6 {[%clk 00:13:53]} {[%emt 00:00:27]} 34. Rf2 {[%clk 00:14:12]} {[%emt
00:00:45]} h6 {[%clk 00:13:03]} {[%emt 00:01:06]} 35. Ra3 {[%clk 00:11:59]}
{[%emt 00:02:06]} Rd7 {[%clk 00:12:23]} {[%emt 00:01:05]} 36. b4 {[%clk
00:11:32]} {[%emt 00:00:38]} b5 {[%clk 00:10:53]} {[%emt 00:01:43]} 37. axb5
{[%clk 00:11:19]} {[%emt 00:00:22]} cxb5 {[%clk 00:11:00]} {[%emt 00:00:03]} 38.
Bd5 {[%clk 00:11:20]} {[%emt 00:00:05]} axb4 {[%clk 00:10:58]} {[%emt
00:00:16]} 39. cxb4 {[%clk 00:11:22]} {[%emt 00:00:08]} Rc7 {[%clk 00:10:49]}
{[%emt 00:00:15]} 40. Ra1 {[%clk 00:10:47]} {[%emt 00:00:48]} Rc3 {[%clk
00:10:37]} {[%emt 00:00:22]} 41. Rd2 {[%clk 00:10:39]} {[%emt 00:00:17]} Kg6
{[%clk 00:10:07]} {[%emt 00:00:40]} 42. Rb1 {[%clk 00:09:22]} {[%emt 00:01:28]}
f5 {[%clk 00:10:07]} {[%emt 00:00:12]} 43. exf5+ {[%clk 00:09:21]} {[%emt
00:00:11]} Kxf5 {[%clk 00:10:14]} {[%emt 00:00:02]} 44. Be4+ {[%clk 00:09:26]}
{[%emt 00:00:05]} Ke6 {[%clk 00:10:16]} {[%emt 00:00:08]} 45. Ra1 {[%clk
00:09:25]} {[%emt 00:00:12]} Kf6 {[%clk 00:09:58]} {[%emt 00:00:27]} 46. Ra6+
{[%clk 00:09:30]} {[%emt 00:00:06]} Kg7 {[%clk 00:09:33]} {[%emt 00:00:35]} 47.
Ra7+ {[%clk 00:09:11]} {[%emt 00:00:28]} Kg8 {[%clk 00:09:18]} {[%emt
00:00:20]} 48. Bd5+ {[%clk 00:09:02]} {[%emt 00:00:22]} Kf8 {[%clk 00:08:45]}
{[%emt 00:00:44]} 49. Rf2+ {[%clk 00:08:59]} {[%emt 00:00:11]} Ke8 {[%clk
00:08:50]} {[%emt 00:00:07]} 50. Bf7+ {[%clk 00:08:30]} {[%emt 00:00:39]} Kd8
{[%clk 00:08:40]} {[%emt 00:00:20]} 51. Bg6 {[%clk 00:08:19]} {[%emt 00:00:15]}
Rc7 {[%clk 00:07:44]} {[%emt 00:01:11]} 52. Rf8+ {[%clk 00:08:02]} {[%emt
00:00:21]} Kd7 {[%clk 00:07:12]} {[%emt 00:00:47]} 53. Rf7+ {[%clk 00:08:02]}
{[%emt 00:00:08]} Kd6 {[%clk 00:07:16]} {[%emt 00:00:09]} 54. Rfxc7 {[%clk
00:07:56]} {[%emt 00:00:17]} 1-0



[ePGN "0.1;DGT LiveChess/2.2.6"]

[Event "MČR družstev mladších žáků 2024"]
[Site "Harrachov, Czech Republic"]
[Date "2024.06.15"]
[Round "7.19"]
[White "Frantsev Iegor"]
[Black "Lickova Anna"]
[Result "1/2-1/2"]
[TimeControl "25+10"]
[WhiteFideId "23736305"]
[BlackFideId "23744359"]
[WhiteElo "1413"]
[BlackElo "1377"]

1. d4 {[%clk 00:25:17]} {[%emt 00:00:01]} Nf6 {[%clk 00:25:19]} {[%emt
00:00:02]} 2. Bg5 {[%clk 00:25:26]} {[%emt 00:00:01]} d5 {[%clk 00:25:22]}
{[%emt 00:00:07]} 3. Bxf6 {[%clk 00:25:33]} {[%emt 00:00:03]} exf6 {[%clk
00:25:29]} {[%emt 00:00:03]} 4. e3 {[%clk 00:25:41]} {[%emt 00:00:01]} Bf5
{[%clk 00:25:27]} {[%emt 00:00:13]} 5. Nf3 {[%clk 00:25:34]} {[%emt 00:00:17]}
c5 {[%clk 00:24:44]} {[%emt 00:00:52]} 6. c3 {[%clk 00:25:33]} {[%emt
00:00:12]} Nc6 {[%clk 00:24:45]} {[%emt 00:00:09]} 7. Bd3 {[%emt 00:00:11]} Bg6
{[%clk 00:22:52]} {[%emt 00:02:01]} 8. Bxg6 {[%clk 00:25:30]} {[%emt 00:00:14]}
fxg6 {[%clk 00:23:00]} {[%emt 00:00:02]} 9. O-O {[%clk 00:25:28]} {[%emt
00:00:12]} c4 {[%clk 00:21:41]} {[%emt 00:01:29]} 10. Nbd2 {[%clk 00:25:25]}
{[%emt 00:00:13]} Bd6 {[%clk 00:21:17]} {[%emt 00:00:34]} 11. e4 {[%clk
00:25:24]} {[%emt 00:00:11]} dxe4 {[%clk 00:20:03]} {[%emt 00:01:24]} 12. Nxe4
{[%clk 00:25:25]} {[%emt 00:00:09]} O-O {[%clk 00:18:57]} {[%emt 00:01:15]} 13.
Nxd6 {[%clk 00:25:19]} {[%emt 00:00:17]} Qxd6 {[%clk 00:18:24]} {[%emt
00:00:42]} 14. Re1 {[%clk 00:25:23]} {[%emt 00:00:07]} Rfe8 {[%clk 00:17:06]}
{[%emt 00:01:27]} 15. Qa4 {[%clk 00:24:55]} {[%emt 00:00:39]} Qd5 {[%clk
00:16:14]} {[%emt 00:01:03]} 16. h3 {[%clk 00:23:28]} {[%emt 00:01:36]} b5
{[%clk 00:14:11]} {[%emt 00:02:12]} 17. Qc2 {[%clk 00:21:55]} {[%emt 00:01:43]}
a6 {[%clk 00:13:36]} {[%emt 00:00:46]} 18. a3 {[%clk 00:21:48]} {[%emt
00:00:17]} Ne7 {[%clk 00:12:45]} {[%emt 00:01:01]} 19. Qe4 {[%clk 00:21:17]}
{[%emt 00:00:40]} Qxe4 {[%clk 00:12:44]} {[%emt 00:00:12]} 20. Rxe4 {[%clk
00:21:25]} {[%emt 00:00:02]} Nd5 {[%clk 00:12:52]} {[%emt 00:00:01]} 21. Rae1
{[%clk 00:21:27]} {[%emt 00:00:09]} Kf7 {[%clk 00:12:33]} {[%emt 00:00:29]} 22.
Kf1 {[%clk 00:20:59]} {[%emt 00:00:37]} h6 {[%clk 00:12:30]} {[%emt 00:00:13]}
23. Nd2 {[%clk 00:20:53]} {[%emt 00:00:17]} a5 {[%clk 00:07:38]} {[%emt
00:05:03]} 24. Rxe8 {[%clk 00:20:13]} {[%emt 00:00:49]} Rxe8 {[%clk 00:07:32]}
{[%emt 00:00:16]} 25. Ne4 {[%clk 00:20:14]} {[%emt 00:00:08]} Re6 {[%clk
00:06:24]} {[%emt 00:01:18]} 26. g3 {[%clk 00:19:57]} {[%emt 00:00:28]} b4
{[%clk 00:03:55]} {[%emt 00:02:39]} 27. axb4 {[%clk 00:17:35]} {[%emt
00:02:32]} axb4 {[%clk 00:03:59]} {[%emt 00:00:06]} 28. f3 {[%clk 00:13:32]}
{[%emt 00:04:13]} f5 {[%clk 00:02:07]} {[%emt 00:02:02]} 29. Nd2 {[%clk
00:13:07]} {[%emt 00:00:34]} bxc3 {[%clk 00:01:26]} {[%emt 00:00:52]} 30. bxc3
{[%clk 00:13:09]} {[%emt 00:00:07]} Nxc3 {[%clk 00:00:37]} {[%emt 00:01:00]} 31.
Nxc4 {[%clk 00:13:11]} {[%emt 00:00:08]} Rxe1+ {[%clk 00:00:45]} {[%emt
00:00:03]} 32. Kxe1 {[%clk 00:13:19]} {[%emt 00:00:02]} Ke6 {[%clk 00:00:36]}
{[%emt 00:00:18]} 33. Kd2 {[%clk 00:11:48]} {[%emt 00:01:41]} Nb5 {[%clk
00:00:27]} {[%emt 00:00:19]} 34. Kd3 {[%clk 00:11:50]} {[%emt 00:00:08]} g5
{[%clk 00:00:21]} {[%emt 00:00:16]} 35. f4 {[%clk 00:09:53]} {[%emt 00:02:07]}
gxf4 {[%clk 00:00:19]} {[%emt 00:00:13]} 36. gxf4 {[%clk 00:10:01]} g5 {[%clk
00:00:28]} {[%emt 00:00:01]} 37. fxg5 {[%clk 00:10:02]} {[%emt 00:00:09]} hxg5
{[%clk 00:00:36]} {[%emt 00:00:01]} 38. Ne3 {[%clk 00:08:23]} {[%emt 00:01:50]}
f4 {[%clk 00:00:19]} {[%emt 00:00:27]} 39. Ng4 {[%clk 00:08:09]} {[%emt
00:00:23]} Kd5 {[%clk 00:00:13]} {[%emt 00:00:18]} 40. Nf6+ {[%clk 00:08:15]}
{[%emt 00:00:03]} Ke6 {[%clk 00:00:18]} {[%emt 00:00:05]} 41. Ng4 {[%clk
00:07:09]} {[%emt 00:01:16]} Kd5 {[%clk 00:00:24]} {[%emt 00:00:04]} 42. Nf6+
{[%clk 00:07:02]} {[%emt 00:00:17]} Ke6 {[%clk 00:00:31]} {[%emt 00:00:03]} 43.
Ng4 {[%clk 00:07:01]} {[%emt 00:00:11]} Kd5 {[%emt 00:00:13]} 44. Nf6+ {[%emt
00:00:01]} Ke6 {[%emt 00:00:02]} 45. Ne4 1/2-1/2



[ePGN "0.1;DGT LiveChess/2.2.6"]

[Event "MČR družstev mladších žáků 2024"]
[Site "Harrachov, Czech Republic"]
[Date "2024.06.15"]
[Round "7.2"]
[White "Kala Jakub"]
[Black "Artamonov Mikhail"]
[Result "1/2-1/2"]
[TimeControl "25+10"]
[WhiteFideId "23753897"]
[BlackFideId "23732946"]
[WhiteElo "1657"]
[BlackElo "1515"]

1. Nf3 {[%clk 00:25:12]} {[%emt 00:00:07]} Nf6 {[%clk 00:25:18]} {[%emt
00:00:03]} 2. c4 {[%clk 00:25:21]} {[%emt 00:00:01]} d6 {[%clk 00:25:27]}
{[%emt 00:00:01]} 3. Nc3 {[%clk 00:25:30]} {[%emt 00:00:02]} g6 {[%clk
00:25:35]} {[%emt 00:00:01]} 4. e4 {[%clk 00:25:39]} Bg7 {[%clk 00:25:41]}
{[%emt 00:00:05]} 5. d4 {[%clk 00:25:46]} {[%emt 00:00:01]} O-O {[%clk
00:25:48]} {[%emt 00:00:03]} 6. Be2 {[%clk 00:25:55]} {[%emt 00:00:02]} e5
{[%clk 00:25:39]} {[%emt 00:00:18]} 7. Be3 {[%clk 00:26:01]} {[%emt 00:00:03]}
Nc6 {[%clk 00:25:23]} {[%emt 00:00:27]} 8. d5 {[%clk 00:25:37]} {[%emt
00:00:34]} Ne7 {[%clk 00:25:29]} {[%emt 00:00:04]} 9. Nd2 {[%clk 00:25:45]}
{[%emt 00:00:02]} Ne8 {[%clk 00:24:53]} {[%emt 00:00:46]} 10. f3 {[%clk
00:25:09]} {[%emt 00:00:45]} f5 {[%clk 00:24:43]} {[%emt 00:00:19]} 11. b4
{[%clk 00:25:04]} {[%emt 00:00:14]} Nf6 {[%clk 00:20:34]} {[%emt 00:04:21]} 12.
Qb3 {[%clk 00:21:57]} {[%emt 00:03:16]} f4 {[%clk 00:19:59]} {[%emt 00:00:45]}
13. Bf2 {[%clk 00:21:46]} {[%emt 00:00:22]} g5 {[%clk 00:16:28]} {[%emt
00:03:42]} 14. h3 {[%clk 00:20:20]} {[%emt 00:01:36]} Ng6 {[%clk 00:13:34]}
{[%emt 00:03:04]} 15. c5 {[%clk 00:19:06]} {[%emt 00:01:24]} Nh5 {[%clk
00:12:53]} {[%emt 00:00:51]} 16. Rc1 {[%clk 00:15:54]} {[%emt 00:03:22]} Ng3
{[%clk 00:12:52]} {[%emt 00:00:11]} 17. Bxg3 {[%clk 00:15:36]} {[%emt
00:00:28]} fxg3 {[%clk 00:13:00]} {[%emt 00:00:02]} 18. a4 {[%clk 00:13:27]}
{[%emt 00:02:20]} Nf4 {[%clk 00:13:05]} {[%emt 00:00:05]} 19. Bf1 {[%clk
00:13:05]} {[%emt 00:00:32]} Rf7 {[%clk 00:10:48]} {[%emt 00:02:27]} 20. Nb5
{[%clk 00:11:39]} {[%emt 00:01:36]} Bf8 {[%clk 00:09:57]} {[%emt 00:01:01]} 21.
Qc3 {[%clk 00:10:09]} {[%emt 00:01:41]} a6 {[%clk 00:09:45]} {[%emt 00:00:21]}
22. Na3 {[%clk 00:09:26]} {[%emt 00:00:52]} b6 {[%clk 00:06:53]} {[%emt
00:03:03]} 23. cxb6 {[%emt 00:03:03]} cxb6 {[%clk 00:06:52]} {[%emt 00:00:08]}
24. Nac4 {[%clk 00:05:38]} {[%emt 00:01:08]} Rc7 {[%clk 00:05:55]} {[%emt
00:01:07]} 25. Qb2 {[%clk 00:05:09]} {[%emt 00:00:39]} Bd7 {[%clk 00:05:10]}
{[%emt 00:00:55]} 26. a5 {[%clk 00:04:35]} {[%emt 00:00:44]} bxa5 {[%clk
00:04:06]} {[%emt 00:01:14]} 27. bxa5 {[%clk 00:04:07]} {[%emt 00:00:38]} Rac8
{[%clk 00:03:16]} {[%emt 00:00:59]} 1/2-1/2



[ePGN "0.1;DGT LiveChess/2.2.6"]

[Event "MČR družstev mladších žáků 2024"]
[Site "Harrachov, Czech Republic"]
[Date "2024.06.15"]
[Round "7.20"]
[White "Havlik David"]
[Black "Mauric Jan"]
[Result "0-1"]
[TimeControl "25+10"]
[WhiteFideId "23751525"]
[BlackFideId "23744200"]
[WhiteElo "1348"]
[BlackElo "1306"]

1. e4 {[%clk 00:25:19]} e6 {[%clk 00:25:19]} {[%emt 00:00:02]} 2. d4 {[%clk
00:25:26]} {[%emt 00:00:02]} b6 {[%clk 00:25:24]} {[%emt 00:00:06]} 3. Nf3
{[%clk 00:25:28]} {[%emt 00:00:07]} Bb7 {[%clk 00:25:31]} {[%emt 00:00:03]} 4.
Bd3 {[%clk 00:25:29]} {[%emt 00:00:09]} c5 {[%clk 00:25:17]} {[%emt 00:00:24]}
5. O-O {[%clk 00:24:45]} {[%emt 00:00:54]} cxd4 {[%clk 00:25:21]} {[%emt
00:00:06]} 6. Nxd4 {[%clk 00:24:53]} {[%emt 00:00:02]} Bc5 {[%clk 00:25:29]}
{[%emt 00:00:02]} 7. Be3 {[%clk 00:24:29]} {[%emt 00:00:34]} Nf6 {[%clk
00:25:32]} {[%emt 00:00:07]} 8. Nc3 {[%clk 00:24:16]} {[%emt 00:00:23]} O-O
{[%clk 00:25:09]} {[%emt 00:00:33]} 9. Re1 {[%clk 00:23:57]} {[%emt 00:00:28]}
Bb4 {[%clk 00:24:34]} {[%emt 00:00:46]} 10. Bg5 {[%clk 00:21:21]} {[%emt
00:02:44]} Be7 {[%emt 00:01:03]} 11. e5 {[%clk 00:18:30]} {[%emt 00:02:58]} Nd5
{[%clk 00:23:29]} {[%emt 00:00:18]} 12. Bxe7 {[%clk 00:17:51]} {[%emt
00:00:58]} Qxe7 {[%clk 00:23:10]} {[%emt 00:00:29]} 13. Nxd5 {[%clk 00:17:15]}
{[%emt 00:00:45]} Bxd5 {[%clk 00:23:18]} {[%emt 00:00:02]} 14. Nb5 {[%clk
00:16:47]} {[%emt 00:00:39]} Qc5 {[%clk 00:17:30]} {[%emt 00:05:58]} 15. Qh5
{[%clk 00:14:05]} {[%emt 00:02:45]} g6 {[%clk 00:17:02]} {[%emt 00:00:45]} 16.
Qh6 {[%clk 00:13:36]} {[%emt 00:00:38]} f5 {[%clk 00:14:53]} {[%emt 00:02:20]}
17. Re3 {[%clk 00:12:56]} {[%emt 00:00:50]} Nc6 {[%clk 00:10:22]} {[%emt
00:04:40]} 18. Rd1 {[%clk 00:11:12]} {[%emt 00:01:54]} Rf7 {[%clk 00:09:07]}
{[%emt 00:01:26]} 19. Nd6 {[%clk 00:09:37]} {[%emt 00:01:45]} Rg7 {[%clk
00:08:49]} {[%emt 00:00:28]} 20. Nb5 {[%clk 00:05:30]} {[%emt 00:04:16]} Rf8
{[%clk 00:08:10]} {[%emt 00:00:50]} 21. b3 {[%clk 00:03:20]} {[%emt 00:02:20]}
Be4 {[%clk 00:07:49]} {[%emt 00:00:32]} 22. Bxe4 {[%clk 00:01:39]} {[%emt
00:01:50]} fxe4 {[%clk 00:07:57]} {[%emt 00:00:02]} 23. c4 {[%clk 00:01:37]}
{[%emt 00:00:12]} Nxe5 {[%clk 00:07:25]} {[%emt 00:00:42]} 24. Qh3 {[%clk
00:01:28]} {[%emt 00:00:19]} Nd3 {[%clk 00:05:50]} {[%emt 00:01:45]} 25. Rf1
{[%clk 00:01:04]} {[%emt 00:00:35]} Rgf7 {[%clk 00:05:05]} {[%emt 00:00:55]} 26.
Qg3 {[%clk 00:00:22]} {[%emt 00:00:51]} Nxf2 {[%clk 00:04:05]} {[%emt
00:01:10]} 27. Rxf2 {[%clk 00:00:25]} {[%emt 00:00:07]} Rxf2 {[%clk 00:04:07]}
{[%emt 00:00:08]} 28. Qxf2 {[%clk 00:00:31]} {[%emt 00:00:04]} Rxf2 {[%clk
00:04:14]} {[%emt 00:00:04]} 29. Kxf2 {[%clk 00:00:40]} {[%emt 00:00:01]} a6
{[%clk 00:03:49]} {[%emt 00:00:34]} 30. Nc3 {[%clk 00:00:44]} {[%emt 00:00:06]}
d5 {[%clk 00:03:30]} {[%emt 00:00:29]} 31. Na4 {[%clk 00:00:30]} {[%emt
00:00:25]} Qd4 {[%clk 00:03:29]} {[%emt 00:00:11]} 32. Ke2 {[%clk 00:00:20]}
{[%emt 00:00:19]} b5 {[%clk 00:03:35]} {[%emt 00:00:04]} 33. Nc3 {[%clk
00:00:14]} {[%emt 00:00:16]} bxc4 {[%clk 00:03:33]} {[%emt 00:00:12]} 34. bxc4
{[%clk 00:00:19]} {[%emt 00:00:05]} Qxc4+ {[%clk 00:03:40]} {[%emt 00:00:03]}
35. Kd1 {[%clk 00:00:21]} {[%emt 00:00:09]} d4 {[%clk 00:03:47]} {[%emt
00:00:03]} 36. Rxe4 {[%clk 00:00:25]} {[%emt 00:00:05]} Qd3+ {[%clk 00:03:42]}
{[%emt 00:00:15]} 37. Ke1 {[%clk 00:00:27]} {[%emt 00:00:08]} Qxc3+ {[%clk
00:03:50]} {[%emt 00:00:02]} 38. Kf2 {[%clk 00:00:36]} {[%emt 00:00:01]} Qc2+
{[%clk 00:03:49]} {[%emt 00:00:11]} 39. Re2 {[%clk 00:00:45]} {[%emt 00:00:01]}
Qf5+ {[%clk 00:03:54]} {[%emt 00:00:05]} 40. Ke1 {[%clk 00:00:43]} {[%emt
00:00:12]} d3 {[%clk 00:03:48]} {[%emt 00:00:17]} 41. Rd2 {[%clk 00:00:49]}
{[%emt 00:00:02]} e5 {[%clk 00:03:48]} {[%emt 00:00:11]} 42. g4 {[%clk
00:00:51]} {[%emt 00:00:08]} Qf3 {[%clk 00:03:34]} {[%emt 00:00:24]} 43. Rf2
{[%clk 00:00:53]} {[%emt 00:00:08]} Qe3+ {[%clk 00:03:29]} {[%emt 00:00:15]} 44.
Kf1 {[%clk 00:00:51]} {[%emt 00:00:12]} d2 {[%clk 00:03:37]} {[%emt 00:00:02]}
45. Rxd2 {[%clk 00:00:56]} {[%emt 00:00:05]} Qxd2 {[%clk 00:03:46]} {[%emt
00:00:01]} 46. g5 {[%clk 00:01:05]} e4 {[%clk 00:03:49]} {[%emt 00:00:08]} 47.
h4 {[%clk 00:01:10]} {[%emt 00:00:04]} e3 {[%clk 00:03:57]} {[%emt 00:00:01]}
48. Kg1 {[%clk 00:01:18]} {[%emt 00:00:02]} e2 {[%clk 00:04:06]} {[%emt
00:00:02]} 49. Kg2 {[%clk 00:01:26]} {[%emt 00:00:02]} e1=Q+ {[%clk 00:04:13]}
{[%emt 00:00:03]} 50. Kf3 {[%clk 00:01:35]} {[%emt 00:00:01]} Qee3+ {[%clk
00:04:18]} {[%emt 00:00:06]} 51. Kg4 {[%clk 00:01:44]} Qg2# {[%clk 00:04:26]}
{[%emt 00:00:01]} 0-1



[ePGN "0.1;DGT LiveChess/2.2.6"]